fUST/lending_fUST_20251207
["ID","MTS","AMOUNT","RATE_DAILY","PERIOD"]
[396549486,1765046524300,-20.71289993,7.412e-05,2]
[396549487,1765046537866,-161.24614753,7.338e-05,2]
[396549488,1765046537887,-30.42385247,7.412e-05,2]
[396549489,1765046538093,157.17,6.6e-05,2]
[396549490,1765046589424,159.33,6.6e-05,2]
[396549491,1765046596211,159.27,6.612e-05,2]
[396549492,1765046649416,159.33,6.6e-05,2]
[396549493,1765046691877,8724.3913597,6.839e-05,2]
[396549495,1765046707256,159.33,6.6e-05,2]
[396549496,1765046720135,-159.33,7.128e-05,2]
[396549497,1765046720158,-38.20334589,7.2e-05,2]
[396549498,1765046730792,150.0,6.664e-05,2]
[396549499,1765046766828,156.15,6.6e-05,2]
[396549500,1765046793633,-156.15,7.227e-05,2]
[396549501,1765046793654,-6.78736334,7.3e-05,2]
[396549502,1765046808651,-149.36263666,7.3e-05,2]
[396549503,1765046808675,-2.60736334,7.393e-05,2]
[396549504,1765046810823,-286.9204002,7.393e-05,2]
[396549505,1765046826239,153.87,6.6e-05,2]
[396549506,1765046852821,-153.87,7.128e-05,2]
[396549507,1765046852849,-153.87,7.2e-05,2]
[396549508,1765046852872,-4.76812098,7.393e-05,2]
[396549509,1765046858021,21.1686403,6.66e-05,2]
[396549510,1765046858047,128.8313597,6.66e-05,2]
[396549511,1765046886824,153.87,6.6e-05,2]
[396549512,1765046941643,250.0,0.00013106,3]
[396549513,1765046948732,153.87,6.6e-05,2]
[396549514,1765046965675,-29.36425521,7.393e-05,2]
[396549515,1765046979368,-153.87,7.4e-05,2]
[396549516,1765046987881,-229.13565306,7.722e-05,2]
[396549517,1765046990015,-474.00251374,7.722e-05,2]
[396549518,1765046991573,-327.89807133,7.722e-05,2]
[396549519,1765046993062,-176.85055349,7.722e-05,2]
[396549520,1765047006442,153.88,6.6e-05,2]
[396549521,1765047010521,153.84,6.612e-05,2]
[396549556,1765047032208,-153.88,7.7e-05,2]
[396549557,1765047032218,-300.0,7.721e-05,2]
[396549558,1765047032228,-215.0,7.721e-05,2]
[396549559,1765047032237,-16541.45142529,7.722e-05,2]
[396549563,1765047032258,-8771.78577111,7.722e-05,2]
[396549564,1765047032267,-8816.73582893,7.8e-05,2]
[396549886,1765047038266,-340.33332483,7.8e-05,2]
[396549887,1765047038381,-15982.82402967,7.8e-05,2]
[396549888,1765047038393,-4617.06328202,7.8e-05,2]
[396549973,1765047040761,-3e-08,7.8e-05,2]
[396549982,1765047040830,-304.127,7.8e-05,2]
[396549984,1765047040841,-1438.76987419,7.8e-05,2]
[396549986,1765047040851,-1119.50542007,7.8e-05,2]
[396549988,1765047040863,-12994.80330086,7.8e-05,2]
[396549990,1765047040872,-477.24110637,7.814e-05,2]
[396549992,1765047040881,-500.0,7.814e-05,2]
[396549994,1765047040891,-500.0,7.814e-05,2]
[396549996,1765047040900,-500.0,7.814e-05,2]
[396549998,1765047040910,-174.61919141,7.814e-05,2]
[396550000,1765047040919,-500.0,7.814e-05,2]
[396550002,1765047040928,-500.0,7.814e-05,2]
[396550004,1765047040938,-500.0,7.814e-05,2]
[396550006,1765047040947,-500.0,7.814e-05,2]
[396550008,1765047040956,-500.0,7.814e-05,2]
[396550010,1765047040966,-500.0,7.814e-05,2]
[396550012,1765047040975,-503.3877327,7.814e-05,2]
[396550014,1765047040984,-250.0,7.814e-05,2]
[396550016,1765047040994,-500.0,7.814e-05,2]
[396550018,1765047041003,-203.0,7.814e-05,2]
[396550020,1765047041012,-500.0,7.814e-05,2]
[396550022,1765047041022,-250.0,7.814e-05,2]
[396550024,1765047041031,-250.0,7.814e-05,2]
[396550026,1765047041039,-500.0,7.814e-05,2]
[396550028,1765047041048,-500.0,7.814e-05,2]
[396550030,1765047041057,-250.0,7.814e-05,2]
[396550032,1765047041067,-500.0,7.814e-05,2]
[396550034,1765047041076,-250.0,7.814e-05,2]
[396550064,1765047041345,-250.0,7.814e-05,2]
[396550066,1765047041358,-500.0,7.814e-05,2]
[396550068,1765047041367,-500.0,7.814e-05,2]
[396550070,1765047041377,-250.0,7.814e-05,2]
[396550072,1765047041386,-500.0,7.814e-05,2]
[396550074,1765047041395,-500.0,7.814e-05,2]
[396550076,1765047041404,-200.71818656,7.814e-05,2]
[396550078,1765047041414,-500.0,7.814e-05,2]
[396550080,1765047041423,-500.0,7.814e-05,2]
[396550082,1765047041432,-500.0,7.814e-05,2]
[396550084,1765047041441,-500.0,7.814e-05,2]
[396550086,1765047041450,-500.0,7.814e-05,2]
[396550088,1765047041459,-500.0,7.814e-05,2]
[396550090,1765047041468,-500.0,7.814e-05,2]
[396550092,1765047041478,-500.0,7.814e-05,2]
[396550094,1765047041487,-306.23878288,7.814e-05,2]
[396550096,1765047041496,-500.0,7.814e-05,2]
[396550098,1765047041505,-500.0,7.814e-05,2]
[396550100,1765047041514,-500.0,7.814e-05,2]
[396550102,1765047041523,-500.0,7.814e-05,2]
[396550104,1765047041532,-500.0,7.814e-05,2]
[396550106,1765047041542,-500.0,7.814e-05,2]
[396550108,1765047041551,-500.0,7.814e-05,2]
[396550110,1765047041560,-1000.0,7.814e-05,2]
[396550112,1765047041569,-500.0,7.814e-05,2]
[396550114,1765047041578,-1000.0,7.814e-05,2]
[396550116,1765047041587,-1000.0,7.814e-05,2]
[396550118,1765047041597,-1000.0,7.814e-05,2]
[396550120,1765047041607,-1000.0,7.814e-05,2]
[396550122,1765047041616,-1000.0,7.814e-05,2]
[396550124,1765047041626,-1000.0,7.814e-05,2]
[396550126,1765047041635,-1000.0,7.814e-05,2]
[396550128,1765047041645,-1000.0,7.814e-05,2]
[396550131,1765047041656,-1000.0,7.814e-05,2]
[396550132,1765047041665,-1067.87266344,7.814e-05,2]
[396550134,1765047041674,-1789.77909769,7.814e-05,2]
[396550136,1765047041684,-300.0,7.816e-05,2]
[396550138,1765047041694,-500.0,7.816e-05,2]
[396550140,1765047041703,-500.0,7.816e-05,2]
[396550142,1765047041712,-500.0,7.816e-05,2]
[396550144,1765047041722,-500.0,7.816e-05,2]
[396550146,1765047041731,-500.0,7.816e-05,2]
[396550148,1765047041740,-500.0,7.816e-05,2]
[396550150,1765047041750,-500.0,7.816e-05,2]
[396550153,1765047041759,-200.0,7.816e-05,2]
[396550155,1765047041769,-389.86267516,7.816e-05,2]
[396550156,1765047041779,-472.66658404,7.816e-05,2]
[396550158,1765047041788,-500.0,7.816e-05,2]
[396550161,1765047041797,-500.0,7.816e-05,2]
[396550162,1765047041807,-500.0,7.816e-05,2]
[396550164,1765047041816,-440.2898717,7.816e-05,2]
[396550166,1765047041826,-500.0,7.816e-05,2]
[396550169,1765047041835,-500.0,7.816e-05,2]
[396550170,1765047041844,-500.0,7.816e-05,2]
[396550172,1765047041854,-500.0,7.816e-05,2]
[396550174,1765047041864,-500.0,7.816e-05,2]
[396550177,1765047041874,-500.0,7.816e-05,2]
[396550179,1765047041886,-3546.74269162,7.816e-05,2]
[396550181,1765047041895,-3546.74269162,7.816e-05,2]
[396550183,1765047041904,-3546.74269162,7.816e-05,2]
[396550185,1765047041913,-3546.74269162,7.816e-05,2]
[396550187,1765047041922,-3513.57464481,7.816e-05,2]
[396550395,1765047043935,-176.85055349,7.721e-05,2]
[396550396,1765047043945,-189.76109351,7.817e-05,2]
[396550397,1765047043956,-809.83906643,7.817e-05,2]
[396550398,1765047043965,-558.89478932,7.818e-05,2]
[396550399,1765047043975,-8944.37817096,7.819e-05,2]
[396550400,1765047043993,-1318.70184405,7.819e-05,2]
[396550401,1765047044005,-40044.4592416,7.819e-05,2]
[396550402,1765047044015,-3040.92075901,7.819e-05,2]
[396550568,1765047045645,-154.42918613,7.721e-05,2]
[396550645,1765047046386,-702.23462972,7.819e-05,2]
[396550649,1765047046477,-6929.59063587,7.819e-05,2]
[396550650,1765047046489,-25826.29,7.819e-05,2]
[396550651,1765047046500,-2583.70658444,7.819e-05,2]
[396551653,1765047057149,2903.43853404,7.721e-05,2]
[396551666,1765047057260,2903.43853404,7.721e-05,2]
[396551672,1765047057308,2903.43853404,7.721e-05,2]
[396551678,1765047057360,980.83602562,7.721e-05,2]
[396551682,1765047057385,1922.60250842,7.721e-05,2]
[396551688,1765047057441,2903.43853404,7.721e-05,2]
[396551729,1765047057815,2903.43853404,7.721e-05,2]
[396551734,1765047057853,2270.5304235,7.721e-05,2]
[396551738,1765047057881,632.90811054,7.721e-05,2]
[396551743,1765047057918,2903.43853404,7.721e-05,2]
[396551747,1765047057955,2903.43853404,7.721e-05,2]
[396551752,1765047057994,2903.43853404,7.721e-05,2]
[396551759,1765047058045,656.78628734,7.721e-05,2]
[396551763,1765047058071,2246.6522467,7.721e-05,2]
[396551769,1765047058126,2903.43853404,7.721e-05,2]
[396551774,1765047058164,2903.43853404,7.721e-05,2]
[396551779,1765047058208,1946.48068522,7.721e-05,2]
[396551783,1765047058232,956.95784882,7.721e-05,2]
[396551788,1765047058271,2903.43853404,7.721e-05,2]
[396551793,1765047058308,2903.43853404,7.721e-05,2]
[396551800,1765047058362,2903.43853404,7.721e-05,2]
[396551805,1765047058403,332.73654906,7.721e-05,2]
[396552225,1765047066304,170.52,6.6e-05,2]
[396552226,1765047124782,154.83,6.6e-05,2]
[396552227,1765047125053,154.83,6.9e-05,2]
[396552228,1765047130660,-154.83,7.3e-05,2]
[396552229,1765047131557,-441.16483493,7.492e-05,2]
[396552230,1765047147278,-1079.91505017,7.492e-05,2]
[396552231,1765047153096,-195.97,7.53e-05,2]
[396552232,1765047156135,-133.45693693,7.53e-05,2]
[396552233,1765047156156,-172.32017929,7.568e-05,2]
[396552234,1765047157191,-215.10551669,7.568e-05,2]
[396552235,1765047159256,1348.75970581,7.492e-05,2]
[396552236,1765047163917,-1133.65418912,7.568e-05,2]
[396552237,1765047176070,150.0,6.665e-05,2]
[396552238,1765047176985,150.0,6.983e-05,2]
[396552239,1765047177141,150.0,7.3e-05,2]
[396552240,1765047181251,154.83,7.524e-05,2]
[396552241,1765047190315,157.25,6.6e-05,2]
[396552242,1765047190663,157.25,7e-05,2]
[396552243,1765047196823,-157.25,7.4e-05,2]
[396552244,1765047198716,157.2,6.612e-05,2]
[396552245,1765047213170,-150.0,7.541e-05,2]
[396552246,1765047225177,150.0,7.541e-05,2]
[396552247,1765047230385,3892.2444106,6.79e-05,2]
[396552248,1765047230428,-150.0,7.617e-05,2]
[396552249,1765047242225,150.0,6.666e-05,2]
[396552250,1765047242612,150.0,6.983e-05,2]
[396552251,1765047243093,150.0,7.301e-05,2]
[396552252,1765047246872,-150.0,7.618e-05,2]
[396552253,1765047246923,150.0,7.542e-05,2]
[396552254,1765047249349,155.66,6.6e-05,2]
[396552255,1765047249701,155.66,7e-05,2]
[396552256,1765047249991,155.66,7.4e-05,2]
[396552260,1765047256636,155.61,6.612e-05,2]
[396552261,1765047264484,-2663.5687666,7.644e-05,2]
[396552262,1765047269700,225.51223005,7.571e-05,2]
[396552263,1765047281499,-225.51223005,7.647e-05,2]
[396552264,1765047291901,9548.9855399,7.643e-05,2]
[396552265,1765047291925,9506.79799359,7.643e-05,2]
[396552266,1765047299810,219.86778809,7.643e-05,2]
[396552267,1765047307807,300.0,7.642e-05,2]
[396552268,1765047307990,220.05,6.6e-05,2]
[396552269,1765047308404,220.05,6.8e-05,2]
[396552270,1765047308682,220.05,6.9e-05,2]
[396552271,1765047308978,220.05,7.1e-05,2]
[396552272,1765047309306,220.05,7.2e-05,2]
[396552273,1765047310221,220.05,7.4e-05,2]
[396552274,1765047310547,220.05,7.5e-05,2]
[396552275,1765047313997,150.0,6.701e-05,2]
[396552276,1765047314453,150.0,7.02e-05,2]
[396552277,1765047314914,150.0,7.339e-05,2]
[396552278,1765047331066,150.0,7.581e-05,2]
[396552279,1765047353240,150.0,7.581e-05,2]
[396552280,1765047375434,150.0,7.581e-05,2]
[396552281,1765047376923,255.11,6.6e-05,2]
[396552282,1765047377213,255.11,6.8e-05,2]
[396552283,1765047377788,255.11,6.9e-05,2]
[396552284,1765047377899,255.11,7.1e-05,2]
[396552285,1765047378368,255.11,7.2e-05,2]
[396552286,1765047378648,255.11,7.4e-05,2]
[396552287,1765047378936,255.11,7.5e-05,2]
[396552288,1765047386288,150.0,6.71e-05,2]
[396552289,1765047387144,150.0,7.029e-05,2]
[396552290,1765047387279,150.0,7.349e-05,2]
[396552291,1765047398168,150.0,7.581e-05,2]
[396552292,1765047421026,150.0,7.581e-05,2]
[396552293,1765047438235,253.65,6.6e-05,2]
[396552294,1765047438588,253.65,6.8e-05,2]
[396552295,1765047438940,253.65,6.9e-05,2]
[396552296,1765047439599,253.65,7.1e-05,2]
[396552297,1765047439685,253.65,7.2e-05,2]
[396552298,1765047440474,253.65,7.4e-05,2]
[396552299,1765047440847,253.65,7.5e-05,2]
[396552300,1765047443208,253.65,7.029e-05,2]
[396552301,1765047450975,150.0,7.581e-05,2]
[396552302,1765047452511,-150.0,7.658e-05,2]
[396552303,1765047460972,150.0,6.697e-05,2]
[396552304,1765047461398,150.0,7.016e-05,2]
[396552305,1765047461790,150.0,7.335e-05,2]
[396552306,1765047462169,176.43,7.654e-05,2]
[396552307,1765047466064,322.83839819,7.611e-05,2]
[396552308,1765047474472,322.83839819,7.611e-05,2]
[396552309,1765047489660,322.83839819,7.611e-05,2]
[396552310,1765047496905,264.9,6.6e-05,2]
[396552311,1765047497203,264.9,6.8e-05,2]
[396552312,1765047497538,264.9,6.9e-05,2]
[396552313,1765047498059,264.9,7.1e-05,2]
[396552314,1765047498456,264.9,7.2e-05,2]
[396552315,1765047498876,264.9,7.4e-05,2]
[396552316,1765047499038,264.9,7.5e-05,2]
[396552317,1765047513477,322.83839819,7.611e-05,2]
[396552318,1765047520085,322.83839819,7.611e-05,2]
[396552319,1765047535301,322.83839819,7.611e-05,2]
[396552320,1765047535471,150.0,6.695e-05,2]
[396552321,1765047535861,150.0,7.014e-05,2]
[396552324,1765047536314,150.0,7.333e-05,2]
[396552325,1765047536670,150.0,7.652e-05,2]
[396552326,1765047557565,322.83839819,7.611e-05,2]
[396552327,1765047560212,261.2,6.6e-05,2]
[396552328,1765047560492,261.2,6.8e-05,2]
[396552329,1765047560796,261.2,6.9e-05,2]
[396552330,1765047561070,261.2,7.1e-05,2]
[396552331,1765047561665,261.2,7.2e-05,2]
[396552332,1765047561742,261.2,7.4e-05,2]
[396552333,1765047561982,261.2,7.5e-05,2]
[396552334,1765047580457,322.83839819,7.611e-05,2]
[396552335,1765047595776,206.8461797,7.558e-05,2]
[396552336,1765047605096,215.0,7.688e-05,2]
[396552337,1765047608017,150.0,6.687e-05,2]
[396552338,1765047608599,150.0,7.006e-05,2]
[396552339,1765047608733,150.0,7.324e-05,2]
[396552340,1765047608842,322.83839819,7.611e-05,2]
[396552341,1765047609095,150.0,7.643e-05,2]
[396552342,1765047618287,265.25,6.6e-05,2]
[396552343,1765047618452,265.25,6.8e-05,2]
[396552344,1765047618728,265.25,6.9e-05,2]
[396552345,1765047619062,265.25,7.1e-05,2]
[396552346,1765047619359,265.25,7.2e-05,2]
[396552347,1765047619671,265.25,7.4e-05,2]
[396552348,1765047619942,265.25,7.5e-05,2]
[396552349,1765047630961,256.00663478,7.611e-05,2]
[396552350,1765047630984,349.7954066,7.611e-05,2]
[396552351,1765047638772,180.80281192,0.00013108,3]
[396552352,1765047653754,605.80204138,7.611e-05,2]
[396552353,1765047676000,605.80204138,7.611e-05,2]
[396552354,1765047677669,255.22,6.6e-05,2]
[396552355,1765047677964,255.22,6.8e-05,2]
[396552356,1765047678355,255.22,6.9e-05,2]
[396552357,1765047678633,255.22,7.1e-05,2]
[396552358,1765047678925,255.22,7.2e-05,2]
[396552359,1765047679295,255.22,7.4e-05,2]
[396552360,1765047679584,255.22,7.5e-05,2]
[396552361,1765047680063,150.0,6.662e-05,2]
[396552362,1765047680466,150.0,6.979e-05,2]
[396552363,1765047681361,150.0,7.296e-05,2]
[396552364,1765047681524,150.0,7.613e-05,2]
[396552365,1765047690058,151.0,7.688e-05,2]
[396552366,1765047698700,605.80204138,7.611e-05,2]
[396552367,1765047721679,605.80204138,7.611e-05,2]
[396552368,1765047741038,288.23,6.6e-05,2]
[396552369,1765047741326,288.23,6.8e-05,2]
[396552370,1765047741656,288.23,6.9e-05,2]
[396552371,1765047741940,288.23,7.1e-05,2]
[396552372,1765047742258,288.23,7.2e-05,2]
[396552373,1765047742578,288.23,7.4e-05,2]
[396552374,1765047742884,288.23,7.5e-05,2]
[396552375,1765047744664,605.80204138,7.611e-05,2]
[396552404,1765047752075,150.0,6.666e-05,2]
[396552405,1765047752464,150.0,6.984e-05,2]
[396552406,1765047752877,150.0,7.301e-05,2]
[396552407,1765047753255,157.88,7.619e-05,2]
[396552408,1765047799029,293.02,6.6e-05,2]
[396552409,1765047799313,293.02,6.8e-05,2]
[396552410,1765047799657,293.02,6.9e-05,2]
[396552411,1765047809614,-293.02,7.1e-05,2]
[396552412,1765047810851,-155.67299573,7.2e-05,2]
[396552413,1765047824898,150.0,6.663e-05,2]
[396552414,1765047825287,150.0,6.981e-05,2]
[396552415,1765047827867,-137.34700427,7.2e-05,2]
[396552416,1765047827890,-110.08737898,7.298e-05,2]
[396552417,1765047841674,-39.91262102,7.298e-05,2]
[396552418,1765047857962,284.81,6.6e-05,2]
[396552419,1765047858234,284.81,6.8e-05,2]
[396552420,1765047858488,-282.96364319,7.611e-05,2]
[396552421,1765047858647,284.81,6.9e-05,2]
[396552422,1765047858923,284.81,7.1e-05,2]
[396552423,1765047859188,284.81,7.2e-05,2]
[396552424,1765047859461,284.81,7.4e-05,2]
[396552425,1765047859732,284.81,7.5e-05,2]
[396552426,1765047874562,167.13,7.539e-05,2]
[396552427,1765047875113,-167.13,7.615e-05,2]
[396552428,1765047897262,282.96364319,7.611e-05,2]
[396552429,1765047899026,150.0,6.67e-05,2]
[396552430,1765047899411,150.0,6.988e-05,2]
[396552431,1765047899813,150.0,7.305e-05,2]
[396552432,1765047900218,150.0,7.623e-05,2]
[396552433,1765047906525,151.0,7.688e-05,2]
[396552434,1765047917816,3879.1965089,6.77e-05,2]
[396552435,1765047919941,282.96364319,7.611e-05,2]
[396552436,1765047921323,189.9403302,6.77e-05,2]
[396552437,1765047922587,254.16,6.6e-05,2]
[396552438,1765047922888,254.16,6.8e-05,2]
[396552439,1765047923879,254.16,6.9e-05,2]
[396552440,1765047923978,254.16,7.1e-05,2]
[396552441,1765047924096,254.16,7.2e-05,2]
[396552442,1765047924403,254.16,7.4e-05,2]
[396552443,1765047925034,254.16,7.5e-05,2]
[396552444,1765047973711,150.0,6.667e-05,2]
[396552445,1765047974155,150.0,6.985e-05,2]
[396552446,1765047975083,290.56,6.6e-05,2]
[396552447,1765047975385,290.56,6.8e-05,2]
[396552448,1765047975652,290.56,6.9e-05,2]
[396552449,1765047978448,-221.52844626,7.1e-05,2]
[396552450,1765047981687,-69.03155374,7.1e-05,2]
[396552451,1765047981715,-136.88135523,7.2e-05,2]
[396552452,1765047983833,-153.67864477,7.2e-05,2]
[396552453,1765047983858,-133.57732614,7.302e-05,2]
[396552454,1765047991270,-16.42267386,7.302e-05,2]
[396552455,1765047993638,-151.0,7.4e-05,2]
[396552456,1765048007180,-139.56,7.4e-05,2]
[396552460,1765048038978,270.74,6.6e-05,2]
[396552461,1765048039591,270.74,6.8e-05,2]
[396552462,1765048039706,270.74,6.9e-05,2]
[396552463,1765048040388,270.74,7.1e-05,2]
[396552464,1765048040665,270.74,7.2e-05,2]
[396552465,1765048040937,270.74,7.4e-05,2]
[396552466,1765048041323,270.74,7.5e-05,2]
[396552467,1765048049449,150.0,6.669e-05,2]
[396552468,1765048050098,150.0,6.987e-05,2]
[396552469,1765048058107,-150.0,7.304e-05,2]
[396552470,1765048098233,232.84,6.6e-05,2]
[396552471,1765048098481,232.84,6.8e-05,2]
[396552472,1765048098753,232.84,6.9e-05,2]
[396552473,1765048108263,-232.84,7.1e-05,2]
[396552474,1765048110281,-232.84,7.2e-05,2]
[396552475,1765048124033,-232.84,7.4e-05,2]
[396552476,1765048124353,150.0,6.666e-05,2]
[396552477,1765048124743,150.0,6.983e-05,2]
[396552478,1765048125148,150.0,7.3e-05,2]
[396552479,1765048141044,-232.84,7.425e-05,2]
[396552480,1765048141465,250.0,0.00013107,3]
[396552481,1765048159749,213.93,6.6e-05,2]
[396552482,1765048160028,213.93,6.8e-05,2]
[396552483,1765048160470,213.93,6.9e-05,2]
[396552484,1765048165153,-213.93,7.1e-05,2]
[396552485,1765048165175,-213.93,7.2e-05,2]
[396552486,1765048165198,-213.93,7.4e-05,2]
[396552487,1765048165223,-88.28569571,7.465e-05,2]
[396552488,1765048174175,-234.55270248,7.465e-05,2]
[396552489,1765048184001,213.93,7.425e-05,2]
[396552490,1765048190065,-213.93,7.5e-05,2]
[396552491,1765048198279,150.0,6.791e-05,2]
[396552492,1765048198722,150.0,7.115e-05,2]
[396552493,1765048199136,150.0,7.438e-05,2]
[396552494,1765048205901,322.83839819,7.465e-05,2]
[396552495,1765048217303,230.9,6.6e-05,2]
[396552496,1765048217608,230.9,6.8e-05,2]
[396552497,1765048217900,230.9,6.9e-05,2]
[396552498,1765048227872,-230.9,7.1e-05,2]
[396552499,1765048227980,230.9,7.029e-05,2]
[396552500,1765048228533,-230.9,7.2e-05,2]
[396552635,1765048233589,-230.9,7.4e-05,2]
[396552636,1765048233599,-230.9,7.5e-05,2]
[396552637,1765048233608,-322.83839819,7.54e-05,2]
[396552638,1765048233618,-214.0,7.54e-05,2]
[396552639,1765048233634,-322.83839819,7.617e-05,2]
[396552640,1765048233645,-197.84006086,7.688e-05,2]
[396552641,1765048233656,-282.96364319,7.688e-05,2]
[396552642,1765048233666,-230.9,7.7e-05,2]
[396552643,1765048233675,-300.0,7.711e-05,2]
[396552644,1765048233684,-405.78636246,7.714e-05,2]
[396552645,1765048233693,-151.0,7.715e-05,2]
[396552646,1765048233702,-500.0,7.715e-05,2]
[396552647,1765048233711,-500.0,7.715e-05,2]
[396552648,1765048233728,-168.3888056,7.715e-05,2]
[396552649,1765048233738,-500.0,7.715e-05,2]
[396552650,1765048233747,-500.0,7.715e-05,2]
[396552651,1765048233758,-500.0,7.715e-05,2]
[396552652,1765048233768,-500.0,7.715e-05,2]
[396552653,1765048233777,-250.0,7.715e-05,2]
[396552654,1765048233786,-500.0,7.715e-05,2]
[396552655,1765048233795,-500.0,7.715e-05,2]
[396552656,1765048233806,-500.0,7.715e-05,2]
[396552657,1765048233814,-500.00000003,7.715e-05,2]
[396552658,1765048233823,-22303.15306,7.715e-05,2]
[396552659,1765048233832,-1000.0,7.715e-05,2]
[396552660,1765048233841,-500.0,7.715e-05,2]
[396552661,1765048233851,-500.0,7.715e-05,2]
[396552662,1765048233861,-500.0,7.715e-05,2]
[396552663,1765048233869,-500.0,7.715e-05,2]
[396552664,1765048233879,-500.0,7.715e-05,2]
[396552665,1765048233891,-169.49704112,7.715e-05,2]
[396552666,1765048233900,-500.0,7.715e-05,2]
[396552667,1765048233910,-500.0,7.715e-05,2]
[396552668,1765048233919,-151.0,7.715e-05,2]
[396552669,1765048233928,-500.0,7.715e-05,2]
[396552670,1765048233937,-500.0,7.715e-05,2]
[396552671,1765048233946,-500.0,7.715e-05,2]
[396552672,1765048233955,-500.0,7.715e-05,2]
[396552673,1765048233964,-500.0,7.715e-05,2]
[396552674,1765048233974,-500.0,7.715e-05,2]
[396552675,1765048233984,-500.0,7.715e-05,2]
[396552676,1765048233994,-250.0,7.715e-05,2]
[396552677,1765048234002,-500.0,7.715e-05,2]
[396552678,1765048234011,-500.0,7.715e-05,2]
[396552679,1765048234020,-500.0,7.715e-05,2]
[396552680,1765048234030,-4335.73295486,7.715e-05,2]
[396552681,1765048234039,-151.0,7.715e-05,2]
[396552682,1765048234048,-500.0,7.715e-05,2]
[396552683,1765048234057,-151.0,7.715e-05,2]
[396552684,1765048234067,-151.0,7.715e-05,2]
[396552685,1765048234076,-531.0,7.715e-05,2]
[396552686,1765048234086,-151.0,7.716e-05,2]
[396552687,1765048234095,-151.0,7.716e-05,2]
[396552688,1765048234104,-151.0,7.716e-05,2]
[396552689,1765048234113,-151.0,7.716e-05,2]
[396552690,1765048234122,-151.0,7.716e-05,2]
[396552691,1765048234132,-151.0,7.716e-05,2]
[396552692,1765048234141,-151.0,7.716e-05,2]
[396552693,1765048234151,-151.0,7.716e-05,2]
[396552694,1765048234160,-151.0,7.716e-05,2]
[396552695,1765048234170,-151.0,7.716e-05,2]
[396552696,1765048234179,-151.0,7.716e-05,2]
[396552697,1765048234189,-500.0,7.716e-05,2]
[396552698,1765048234198,-151.0,7.719e-05,2]
[396552699,1765048234207,-151.0,7.719e-05,2]
[396552700,1765048234217,-151.0,7.719e-05,2]
[396552701,1765048234226,-151.0,7.719e-05,2]
[396552702,1765048234235,-283897.01823161,7.719e-05,2]
[396552703,1765048236210,171.26640483,0.00011984,9]
[396552742,1765048238599,-230.9,7.326e-05,2]
[396552745,1765048238609,-1334.817,7.715e-05,2]
[396552747,1765048238620,-895.498306,7.715e-05,2]
[396552749,1765048238629,-181491.22591093,7.719e-05,2]
[396552751,1765048238640,-720.66052148,7.719e-05,2]
[396552759,1765048238705,-423891.09533598,7.719e-05,2]
[396552761,1765048238714,-153.7430298,7.72e-05,2]
[396552763,1765048238726,-405.78636243,7.736e-05,2]
[396552765,1765048238736,-397.3971243,7.74e-05,2]
[396552767,1765048238745,-153.0,7.74e-05,2]
[396552769,1765048238754,-394.6990158,7.74e-05,2]
[396552771,1765048238763,-153.0,7.74e-05,2]
[396552773,1765048238772,-405.78636243,7.757e-05,2]
[396552775,1765048238781,-150.0,7.762e-05,2]
[396552777,1765048238791,-815.56214075,7.77e-05,2]
[396552779,1765048238800,-405.78636243,7.779e-05,2]
[396552781,1765048238809,-8573.9582887,7.781e-05,2]
[396552783,1765048238819,-460.63,7.8e-05,2]
[396552785,1765048238828,-184.44,7.8e-05,2]
[396552814,1765048239089,-405.78636243,7.8e-05,2]
[396552817,1765048239100,-230.9,7.8e-05,2]
[396552819,1765048239109,-250.0,7.818e-05,2]